{"text_format":"1","workbook":"xlsx","n_sheets":29,"sheets":["MONTH VIEW","Day 1","Day 2","Day 3","Day 4","Day 5","Day 6","Day 7","Day 8","Day 9","Day 10","Day 11","Day 12","Day 13","Day 14","Day 15","Day 16","Day 17","Day 18","Day 19","Day 20","Day 21","Day 22","Day 23","Day 24","Day 25","Day 26","Day 27","Day 28"],"not_rendered":{"charts":0,"images":1,"macros":1,"external_links":0,"defined_names":116,"comments":0,"pivot_tables":0},"unopened":[],"bounds":{"document_bytes":16777216,"sheet_cells":100000,"rows_first":2000,"rows_last":500,"rows_between":2000,"halvings":0,"cell_chars":16384,"cell_head_chars":4096},"cells_cut":0,"cells_raw":0,"read":"whole","date_system":"1900"}

{"sheet":"MONTH VIEW","index":0,"n_rows":17,"n_cols":9,"rows_kept":17,"cut":false,"hidden":false,"merged":[[16,2,16,8],[2,2,2,4],[4,2,4,4],[5,2,5,4],[4,5,4,8],[5,5,5,8],[7,2,7,4],[7,6,7,8],[2,5,2,8]]}
[]
[]
[null,null,null,null,null,"LatinoFluency.com"]
[]
[null,null,"What is your Start Date?",null,null,"What is your Motivation and Goal?"]
[]
[]
[null,null,{"$f":"\"CURRENT STATUS: \" & IF(G8=\"28 DAYS COMPLETE\",\"COMPLETE\",\"INCOMPLETE\")","v":"CURRENT STATUS: INCOMPLETE"},null,null,null,{"$f":"IF(COUNTIF(C9:I16,\"COMPLETE\")=1,COUNTIF(C9:I16,\"COMPLETE\") & \" DAY COMPLETE\",COUNTIF(C9:I16,\"COMPLETE\") & \" DAYS COMPLETE\")","v":"0 DAYS COMPLETE"}]
[null,null,1,2,3,4,5,6,7]
[null,null,{"$f":"SUBSTITUTE('Day 1'!$E$5,\"Status: \",\"\")","v":"INCOMPLETE"},{"$f":"SUBSTITUTE('Day 2'!$E$5,\"Status: \",\"\")","v":"INCOMPLETE"},{"$f":"SUBSTITUTE('Day 3'!$E$5,\"Status: \",\"\")","v":"INCOMPLETE"},{"$f":"SUBSTITUTE('Day 4'!$E$5,\"Status: \",\"\")","v":"INCOMPLETE"},{"$f":"SUBSTITUTE('Day 5'!$E$5,\"Status: \",\"\")","v":"INCOMPLETE"},{"$f":"SUBSTITUTE('Day 6'!$E$5,\"Status: \",\"\")","v":"INCOMPLETE"},{"$f":"SUBSTITUTE('Day 7'!$E$5,\"Status: \",\"\")","v":"INCOMPLETE"}]
[null,null,8,9,10,11,12,13,14]
[null,null,{"$f":"SUBSTITUTE('Day 8'!$E$5,\"Status: \",\"\")","v":"INCOMPLETE"},{"$f":"SUBSTITUTE('Day 9'!$E$5,\"Status: \",\"\")","v":"INCOMPLETE"},{"$f":"SUBSTITUTE('Day 10'!$E$5,\"Status: \",\"\")","v":"INCOMPLETE"},{"$f":"SUBSTITUTE('Day 11'!$E$5,\"Status: \",\"\")","v":"INCOMPLETE"},{"$f":"SUBSTITUTE('Day 12'!$E$5,\"Status: \",\"\")","v":"INCOMPLETE"},{"$f":"SUBSTITUTE('Day 13'!$E$5,\"Status: \",\"\")","v":"INCOMPLETE"},{"$f":"SUBSTITUTE('Day 14'!$E$5,\"Status: \",\"\")","v":"INCOMPLETE"}]
[null,null,15,16,17,18,19,20,21]
[null,null,{"$f":"SUBSTITUTE('Day 15'!$E$5,\"Status: \",\"\")","v":"INCOMPLETE"},{"$f":"SUBSTITUTE('Day 16'!$E$5,\"Status: \",\"\")","v":"INCOMPLETE"},{"$f":"SUBSTITUTE('Day 17'!$E$5,\"Status: \",\"\")","v":"INCOMPLETE"},{"$f":"SUBSTITUTE('Day 18'!$E$5,\"Status: \",\"\")","v":"INCOMPLETE"},{"$f":"SUBSTITUTE('Day 19'!$E$5,\"Status: \",\"\")","v":"INCOMPLETE"},{"$f":"SUBSTITUTE('Day 20'!$E$5,\"Status: \",\"\")","v":"INCOMPLETE"},{"$f":"SUBSTITUTE('Day 21'!$E$5,\"Status: \",\"\")","v":"INCOMPLETE"}]
[null,null,22,23,24,25,26,27,28]
[null,null,{"$f":"SUBSTITUTE('Day 22'!$E$5,\"Status: \",\"\")","v":"INCOMPLETE"},{"$f":"SUBSTITUTE('Day 23'!$E$5,\"Status: \",\"\")","v":"INCOMPLETE"},{"$f":"SUBSTITUTE('Day 24'!$E$5,\"Status: \",\"\")","v":"INCOMPLETE"},{"$f":"SUBSTITUTE('Day 25'!$E$5,\"Status: \",\"\")","v":"INCOMPLETE"},{"$f":"SUBSTITUTE('Day 26'!$E$5,\"Status: \",\"\")","v":"INCOMPLETE"},{"$f":"SUBSTITUTE('Day 27'!$E$5,\"Status: \",\"\")","v":"INCOMPLETE"},{"$f":"SUBSTITUTE('Day 28'!$E$5,\"Status: \",\"\")","v":"INCOMPLETE"}]
[null,null,"Double click on any day number to natigate to its details page"]

{"sheet":"Day 1","index":1,"n_rows":13,"n_cols":6,"rows_kept":13,"cut":false,"hidden":false,"merged":[[2,2,2,4],[2,5,2,8],[6,2,6,4],[6,5,6,8],[12,2,12,4],[12,5,12,8],[8,2,8,4],[4,2,4,3],[4,4,4,6],[4,7,4,8],[8,5,8,8],[10,2,10,4],[10,5,10,8]]}
[]
[]
[null,null,null,null,null,"LatinoFluency.com"]
[]
[null,null,"Day 1",null,{"$f":"\"Status: \"&IF(COUNTA(F7,F11,F13,F9)=4,\"COMPLETE\",\"INCOMPLETE\")","v":"Status: INCOMPLETE"}]
[]
[null,null,"Did you train your Spanish skills today?"]
[]
[null,null,"How many Pomodoros did you complete?"]
[]
[null,null,"What skills did you train?\nWhat tools did you use?"]
[]
[null,null,"What did you do well today?\nWhat can you improve on tomorrow?"]

{"sheet":"Day 2","index":2,"n_rows":13,"n_cols":6,"rows_kept":13,"cut":false,"hidden":false,"merged":[[8,2,8,4],[8,5,8,8],[10,2,10,4],[10,5,10,8],[12,2,12,4],[12,5,12,8],[2,2,2,4],[2,5,2,8],[4,2,4,3],[4,4,4,6],[4,7,4,8],[6,2,6,4],[6,5,6,8]]}
[]
[]
[null,null,null,null,null,"LatinoFluency.com"]
[]
[null,null,"Day 2",null,{"$f":"\"Status: \"&IF(COUNTA(F7,F11,F13,F9)=4,\"COMPLETE\",\"INCOMPLETE\")","v":"Status: INCOMPLETE"}]
[]
[null,null,"Did you train your Spanish skills today?"]
[]
[null,null,"How many Pomodoros did you complete?"]
[]
[null,null,"What skills did you train?\nWhat tools did you use?"]
[]
[null,null,"What did you do well today?\nWhat can you improve on tomorrow?"]

{"sheet":"Day 3","index":3,"n_rows":13,"n_cols":6,"rows_kept":13,"cut":false,"hidden":false,"merged":[[8,2,8,4],[8,5,8,8],[10,2,10,4],[10,5,10,8],[12,2,12,4],[12,5,12,8],[2,2,2,4],[2,5,2,8],[4,2,4,3],[4,4,4,6],[4,7,4,8],[6,2,6,4],[6,5,6,8]]}
[]
[]
[null,null,null,null,null,"LatinoFluency.com"]
[]
[null,null,"Day 3",null,{"$f":"\"Status: \"&IF(COUNTA(F7,F11,F13,F9)=4,\"COMPLETE\",\"INCOMPLETE\")","v":"Status: INCOMPLETE"}]
[]
[null,null,"Did you train your Spanish skills today?"]
[]
[null,null,"How many Pomodoros did you complete?"]
[]
[null,null,"What skills did you train?\nWhat tools did you use?"]
[]
[null,null,"What did you do well today?\nWhat can you improve on tomorrow?"]

{"sheet":"Day 4","index":4,"n_rows":13,"n_cols":6,"rows_kept":13,"cut":false,"hidden":false,"merged":[[8,2,8,4],[8,5,8,8],[10,2,10,4],[10,5,10,8],[12,2,12,4],[12,5,12,8],[2,2,2,4],[2,5,2,8],[4,2,4,3],[4,4,4,6],[4,7,4,8],[6,2,6,4],[6,5,6,8]]}
[]
[]
[null,null,null,null,null,"LatinoFluency.com"]
[]
[null,null,"Day 4",null,{"$f":"\"Status: \"&IF(COUNTA(F7,F11,F13,F9)=4,\"COMPLETE\",\"INCOMPLETE\")","v":"Status: INCOMPLETE"}]
[]
[null,null,"Did you train your Spanish skills today?"]
[]
[null,null,"How many Pomodoros did you complete?"]
[]
[null,null,"What skills did you train?\nWhat tools did you use?"]
[]
[null,null,"What did you do well today?\nWhat can you improve on tomorrow?"]

{"sheet":"Day 5","index":5,"n_rows":13,"n_cols":6,"rows_kept":13,"cut":false,"hidden":false,"merged":[[8,2,8,4],[8,5,8,8],[10,2,10,4],[10,5,10,8],[12,2,12,4],[12,5,12,8],[2,2,2,4],[2,5,2,8],[4,2,4,3],[4,4,4,6],[4,7,4,8],[6,2,6,4],[6,5,6,8]]}
[]
[]
[null,null,null,null,null,"LatinoFluency.com"]
[]
[null,null,"Day 5",null,{"$f":"\"Status: \"&IF(COUNTA(F7,F11,F13,F9)=4,\"COMPLETE\",\"INCOMPLETE\")","v":"Status: INCOMPLETE"}]
[]
[null,null,"Did you train your Spanish skills today?"]
[]
[null,null,"How many Pomodoros did you complete?"]
[]
[null,null,"What skills did you train?\nWhat tools did you use?"]
[]
[null,null,"What did you do well today?\nWhat can you improve on tomorrow?"]

{"sheet":"Day 6","index":6,"n_rows":13,"n_cols":6,"rows_kept":13,"cut":false,"hidden":false,"merged":[[8,2,8,4],[8,5,8,8],[10,2,10,4],[10,5,10,8],[12,2,12,4],[12,5,12,8],[2,2,2,4],[2,5,2,8],[4,2,4,3],[4,4,4,6],[4,7,4,8],[6,2,6,4],[6,5,6,8]]}
[]
[]
[null,null,null,null,null,"LatinoFluency.com"]
[]
[null,null,"Day 6",null,{"$f":"\"Status: \"&IF(COUNTA(F7,F11,F13,F9)=4,\"COMPLETE\",\"INCOMPLETE\")","v":"Status: INCOMPLETE"}]
[]
[null,null,"Did you train your Spanish skills today?"]
[]
[null,null,"How many Pomodoros did you complete?"]
[]
[null,null,"What skills did you train?\nWhat tools did you use?"]
[]
[null,null,"What did you do well today?\nWhat can you improve on tomorrow?"]

{"sheet":"Day 7","index":7,"n_rows":13,"n_cols":6,"rows_kept":13,"cut":false,"hidden":false,"merged":[[8,2,8,4],[8,5,8,8],[10,2,10,4],[10,5,10,8],[12,2,12,4],[12,5,12,8],[2,2,2,4],[2,5,2,8],[4,2,4,3],[4,4,4,6],[4,7,4,8],[6,2,6,4],[6,5,6,8]]}
[]
[]
[null,null,null,null,null,"LatinoFluency.com"]
[]
[null,null,"Day 7",null,{"$f":"\"Status: \"&IF(COUNTA(F7,F11,F13,F9)=4,\"COMPLETE\",\"INCOMPLETE\")","v":"Status: INCOMPLETE"}]
[]
[null,null,"Did you train your Spanish skills today?"]
[]
[null,null,"How many Pomodoros did you complete?"]
[]
[null,null,"What skills did you train?\nWhat tools did you use?"]
[]
[null,null,"What did you do well today?\nWhat can you improve on tomorrow?"]

{"sheet":"Day 8","index":8,"n_rows":13,"n_cols":6,"rows_kept":13,"cut":false,"hidden":false,"merged":[[8,2,8,4],[8,5,8,8],[10,2,10,4],[10,5,10,8],[12,2,12,4],[12,5,12,8],[2,2,2,4],[2,5,2,8],[4,2,4,3],[4,4,4,6],[4,7,4,8],[6,2,6,4],[6,5,6,8]]}
[]
[]
[null,null,null,null,null,"LatinoFluency.com"]
[]
[null,null,"Day 8",null,{"$f":"\"Status: \"&IF(COUNTA(F7,F11,F13,F9)=4,\"COMPLETE\",\"INCOMPLETE\")","v":"Status: INCOMPLETE"}]
[]
[null,null,"Did you train your Spanish skills today?"]
[]
[null,null,"How many Pomodoros did you complete?"]
[]
[null,null,"What skills did you train?\nWhat tools did you use?"]
[]
[null,null,"What did you do well today?\nWhat can you improve on tomorrow?"]

{"sheet":"Day 9","index":9,"n_rows":13,"n_cols":6,"rows_kept":13,"cut":false,"hidden":false,"merged":[[8,2,8,4],[8,5,8,8],[10,2,10,4],[10,5,10,8],[12,2,12,4],[12,5,12,8],[2,2,2,4],[2,5,2,8],[4,2,4,3],[4,4,4,6],[4,7,4,8],[6,2,6,4],[6,5,6,8]]}
[]
[]
[null,null,null,null,null,"LatinoFluency.com"]
[]
[null,null,"Day 9",null,{"$f":"\"Status: \"&IF(COUNTA(F7,F11,F13,F9)=4,\"COMPLETE\",\"INCOMPLETE\")","v":"Status: INCOMPLETE"}]
[]
[null,null,"Did you train your Spanish skills today?"]
[]
[null,null,"How many Pomodoros did you complete?"]
[]
[null,null,"What skills did you train?\nWhat tools did you use?"]
[]
[null,null,"What did you do well today?\nWhat can you improve on tomorrow?"]

{"sheet":"Day 10","index":10,"n_rows":13,"n_cols":6,"rows_kept":13,"cut":false,"hidden":false,"merged":[[8,2,8,4],[8,5,8,8],[10,2,10,4],[10,5,10,8],[12,2,12,4],[12,5,12,8],[2,2,2,4],[2,5,2,8],[4,2,4,3],[4,4,4,6],[4,7,4,8],[6,2,6,4],[6,5,6,8]]}
[]
[]
[null,null,null,null,null,"LatinoFluency.com"]
[]
[null,null,"Day 10",null,{"$f":"\"Status: \"&IF(COUNTA(F7,F11,F13,F9)=4,\"COMPLETE\",\"INCOMPLETE\")","v":"Status: INCOMPLETE"}]
[]
[null,null,"Did you train your Spanish skills today?"]
[]
[null,null,"How many Pomodoros did you complete?"]
[]
[null,null,"What skills did you train?\nWhat tools did you use?"]
[]
[null,null,"What did you do well today?\nWhat can you improve on tomorrow?"]

{"sheet":"Day 11","index":11,"n_rows":13,"n_cols":6,"rows_kept":13,"cut":false,"hidden":false,"merged":[[8,2,8,4],[8,5,8,8],[10,2,10,4],[10,5,10,8],[12,2,12,4],[12,5,12,8],[2,2,2,4],[2,5,2,8],[4,2,4,3],[4,4,4,6],[4,7,4,8],[6,2,6,4],[6,5,6,8]]}
[]
[]
[null,null,null,null,null,"LatinoFluency.com"]
[]
[null,null,"Day 11",null,{"$f":"\"Status: \"&IF(COUNTA(F7,F11,F13,F9)=4,\"COMPLETE\",\"INCOMPLETE\")","v":"Status: INCOMPLETE"}]
[]
[null,null,"Did you train your Spanish skills today?"]
[]
[null,null,"How many Pomodoros did you complete?"]
[]
[null,null,"What skills did you train?\nWhat tools did you use?"]
[]
[null,null,"What did you do well today?\nWhat can you improve on tomorrow?"]

{"sheet":"Day 12","index":12,"n_rows":13,"n_cols":6,"rows_kept":13,"cut":false,"hidden":false,"merged":[[8,2,8,4],[8,5,8,8],[10,2,10,4],[10,5,10,8],[12,2,12,4],[12,5,12,8],[2,2,2,4],[2,5,2,8],[4,2,4,3],[4,4,4,6],[4,7,4,8],[6,2,6,4],[6,5,6,8]]}
[]
[]
[null,null,null,null,null,"LatinoFluency.com"]
[]
[null,null,"Day 12",null,{"$f":"\"Status: \"&IF(COUNTA(F7,F11,F13,F9)=4,\"COMPLETE\",\"INCOMPLETE\")","v":"Status: INCOMPLETE"}]
[]
[null,null,"Did you train your Spanish skills today?"]
[]
[null,null,"How many Pomodoros did you complete?"]
[]
[null,null,"What skills did you train?\nWhat tools did you use?"]
[]
[null,null,"What did you do well today?\nWhat can you improve on tomorrow?"]

{"sheet":"Day 13","index":13,"n_rows":13,"n_cols":6,"rows_kept":13,"cut":false,"hidden":false,"merged":[[8,2,8,4],[8,5,8,8],[10,2,10,4],[10,5,10,8],[12,2,12,4],[12,5,12,8],[2,2,2,4],[2,5,2,8],[4,2,4,3],[4,4,4,6],[4,7,4,8],[6,2,6,4],[6,5,6,8]]}
[]
[]
[null,null,null,null,null,"LatinoFluency.com"]
[]
[null,null,"Day 13",null,{"$f":"\"Status: \"&IF(COUNTA(F7,F11,F13,F9)=4,\"COMPLETE\",\"INCOMPLETE\")","v":"Status: INCOMPLETE"}]
[]
[null,null,"Did you train your Spanish skills today?"]
[]
[null,null,"How many Pomodoros did you complete?"]
[]
[null,null,"What skills did you train?\nWhat tools did you use?"]
[]
[null,null,"What did you do well today?\nWhat can you improve on tomorrow?"]

{"sheet":"Day 14","index":14,"n_rows":13,"n_cols":6,"rows_kept":13,"cut":false,"hidden":false,"merged":[[8,2,8,4],[8,5,8,8],[10,2,10,4],[10,5,10,8],[12,2,12,4],[12,5,12,8],[2,2,2,4],[2,5,2,8],[4,2,4,3],[4,4,4,6],[4,7,4,8],[6,2,6,4],[6,5,6,8]]}
[]
[]
[null,null,null,null,null,"LatinoFluency.com"]
[]
[null,null,"Day 14",null,{"$f":"\"Status: \"&IF(COUNTA(F7,F11,F13,F9)=4,\"COMPLETE\",\"INCOMPLETE\")","v":"Status: INCOMPLETE"}]
[]
[null,null,"Did you train your Spanish skills today?"]
[]
[null,null,"How many Pomodoros did you complete?"]
[]
[null,null,"What skills did you train?\nWhat tools did you use?"]
[]
[null,null,"What did you do well today?\nWhat can you improve on tomorrow?"]

{"sheet":"Day 15","index":15,"n_rows":13,"n_cols":6,"rows_kept":13,"cut":false,"hidden":false,"merged":[[8,2,8,4],[8,5,8,8],[10,2,10,4],[10,5,10,8],[12,2,12,4],[12,5,12,8],[2,2,2,4],[2,5,2,8],[4,2,4,3],[4,4,4,6],[4,7,4,8],[6,2,6,4],[6,5,6,8]]}
[]
[]
[null,null,null,null,null,"LatinoFluency.com"]
[]
[null,null,"Day 15",null,{"$f":"\"Status: \"&IF(COUNTA(F7,F11,F13,F9)=4,\"COMPLETE\",\"INCOMPLETE\")","v":"Status: INCOMPLETE"}]
[]
[null,null,"Did you train your Spanish skills today?"]
[]
[null,null,"How many Pomodoros did you complete?"]
[]
[null,null,"What skills did you train?\nWhat tools did you use?"]
[]
[null,null,"What did you do well today?\nWhat can you improve on tomorrow?"]

{"sheet":"Day 16","index":16,"n_rows":13,"n_cols":6,"rows_kept":13,"cut":false,"hidden":false,"merged":[[8,2,8,4],[8,5,8,8],[10,2,10,4],[10,5,10,8],[12,2,12,4],[12,5,12,8],[2,2,2,4],[2,5,2,8],[4,2,4,3],[4,4,4,6],[4,7,4,8],[6,2,6,4],[6,5,6,8]]}
[]
[]
[null,null,null,null,null,"LatinoFluency.com"]
[]
[null,null,"Day 16",null,{"$f":"\"Status: \"&IF(COUNTA(F7,F11,F13,F9)=4,\"COMPLETE\",\"INCOMPLETE\")","v":"Status: INCOMPLETE"}]
[]
[null,null,"Did you train your Spanish skills today?"]
[]
[null,null,"How many Pomodoros did you complete?"]
[]
[null,null,"What skills did you train?\nWhat tools did you use?"]
[]
[null,null,"What did you do well today?\nWhat can you improve on tomorrow?"]

{"sheet":"Day 17","index":17,"n_rows":13,"n_cols":6,"rows_kept":13,"cut":false,"hidden":false,"merged":[[8,2,8,4],[8,5,8,8],[10,2,10,4],[10,5,10,8],[12,2,12,4],[12,5,12,8],[2,2,2,4],[2,5,2,8],[4,2,4,3],[4,4,4,6],[4,7,4,8],[6,2,6,4],[6,5,6,8]]}
[]
[]
[null,null,null,null,null,"LatinoFluency.com"]
[]
[null,null,"Day 17",null,{"$f":"\"Status: \"&IF(COUNTA(F7,F11,F13,F9)=4,\"COMPLETE\",\"INCOMPLETE\")","v":"Status: INCOMPLETE"}]
[]
[null,null,"Did you train your Spanish skills today?"]
[]
[null,null,"How many Pomodoros did you complete?"]
[]
[null,null,"What skills did you train?\nWhat tools did you use?"]
[]
[null,null,"What did you do well today?\nWhat can you improve on tomorrow?"]

{"sheet":"Day 18","index":18,"n_rows":13,"n_cols":6,"rows_kept":13,"cut":false,"hidden":false,"merged":[[8,2,8,4],[8,5,8,8],[10,2,10,4],[10,5,10,8],[12,2,12,4],[12,5,12,8],[2,2,2,4],[2,5,2,8],[4,2,4,3],[4,4,4,6],[4,7,4,8],[6,2,6,4],[6,5,6,8]]}
[]
[]
[null,null,null,null,null,"LatinoFluency.com"]
[]
[null,null,"Day 18",null,{"$f":"\"Status: \"&IF(COUNTA(F7,F11,F13,F9)=4,\"COMPLETE\",\"INCOMPLETE\")","v":"Status: INCOMPLETE"}]
[]
[null,null,"Did you train your Spanish skills today?"]
[]
[null,null,"How many Pomodoros did you complete?"]
[]
[null,null,"What skills did you train?\nWhat tools did you use?"]
[]
[null,null,"What did you do well today?\nWhat can you improve on tomorrow?"]

{"sheet":"Day 19","index":19,"n_rows":13,"n_cols":6,"rows_kept":13,"cut":false,"hidden":false,"merged":[[8,2,8,4],[8,5,8,8],[10,2,10,4],[10,5,10,8],[12,2,12,4],[12,5,12,8],[2,2,2,4],[2,5,2,8],[4,2,4,3],[4,4,4,6],[4,7,4,8],[6,2,6,4],[6,5,6,8]]}
[]
[]
[null,null,null,null,null,"LatinoFluency.com"]
[]
[null,null,"Day 19",null,{"$f":"\"Status: \"&IF(COUNTA(F7,F11,F13,F9)=4,\"COMPLETE\",\"INCOMPLETE\")","v":"Status: INCOMPLETE"}]
[]
[null,null,"Did you train your Spanish skills today?"]
[]
[null,null,"How many Pomodoros did you complete?"]
[]
[null,null,"What skills did you train?\nWhat tools did you use?"]
[]
[null,null,"What did you do well today?\nWhat can you improve on tomorrow?"]

{"sheet":"Day 20","index":20,"n_rows":13,"n_cols":6,"rows_kept":13,"cut":false,"hidden":false,"merged":[[8,2,8,4],[8,5,8,8],[10,2,10,4],[10,5,10,8],[12,2,12,4],[12,5,12,8],[2,2,2,4],[2,5,2,8],[4,2,4,3],[4,4,4,6],[4,7,4,8],[6,2,6,4],[6,5,6,8]]}
[]
[]
[null,null,null,null,null,"LatinoFluency.com"]
[]
[null,null,"Day 20",null,{"$f":"\"Status: \"&IF(COUNTA(F7,F11,F13,F9)=4,\"COMPLETE\",\"INCOMPLETE\")","v":"Status: INCOMPLETE"}]
[]
[null,null,"Did you train your Spanish skills today?"]
[]
[null,null,"How many Pomodoros did you complete?"]
[]
[null,null,"What skills did you train?\nWhat tools did you use?"]
[]
[null,null,"What did you do well today?\nWhat can you improve on tomorrow?"]

{"sheet":"Day 21","index":21,"n_rows":13,"n_cols":6,"rows_kept":13,"cut":false,"hidden":false,"merged":[[8,2,8,4],[8,5,8,8],[10,2,10,4],[10,5,10,8],[12,2,12,4],[12,5,12,8],[2,2,2,4],[2,5,2,8],[4,2,4,3],[4,4,4,6],[4,7,4,8],[6,2,6,4],[6,5,6,8]]}
[]
[]
[null,null,null,null,null,"LatinoFluency.com"]
[]
[null,null,"Day 21",null,{"$f":"\"Status: \"&IF(COUNTA(F7,F11,F13,F9)=4,\"COMPLETE\",\"INCOMPLETE\")","v":"Status: INCOMPLETE"}]
[]
[null,null,"Did you train your Spanish skills today?"]
[]
[null,null,"How many Pomodoros did you complete?"]
[]
[null,null,"What skills did you train?\nWhat tools did you use?"]
[]
[null,null,"What did you do well today?\nWhat can you improve on tomorrow?"]

{"sheet":"Day 22","index":22,"n_rows":13,"n_cols":6,"rows_kept":13,"cut":false,"hidden":false,"merged":[[8,2,8,4],[8,5,8,8],[10,2,10,4],[10,5,10,8],[12,2,12,4],[12,5,12,8],[2,2,2,4],[2,5,2,8],[4,2,4,3],[4,4,4,6],[4,7,4,8],[6,2,6,4],[6,5,6,8]]}
[]
[]
[null,null,null,null,null,"LatinoFluency.com"]
[]
[null,null,"Day 22",null,{"$f":"\"Status: \"&IF(COUNTA(F7,F11,F13,F9)=4,\"COMPLETE\",\"INCOMPLETE\")","v":"Status: INCOMPLETE"}]
[]
[null,null,"Did you train your Spanish skills today?"]
[]
[null,null,"How many Pomodoros did you complete?"]
[]
[null,null,"What skills did you train?\nWhat tools did you use?"]
[]
[null,null,"What did you do well today?\nWhat can you improve on tomorrow?"]

{"sheet":"Day 23","index":23,"n_rows":13,"n_cols":6,"rows_kept":13,"cut":false,"hidden":false,"merged":[[8,2,8,4],[8,5,8,8],[10,2,10,4],[10,5,10,8],[12,2,12,4],[12,5,12,8],[2,2,2,4],[2,5,2,8],[4,2,4,3],[4,4,4,6],[4,7,4,8],[6,2,6,4],[6,5,6,8]]}
[]
[]
[null,null,null,null,null,"LatinoFluency.com"]
[]
[null,null,"Day 23",null,{"$f":"\"Status: \"&IF(COUNTA(F7,F11,F13,F9)=4,\"COMPLETE\",\"INCOMPLETE\")","v":"Status: INCOMPLETE"}]
[]
[null,null,"Did you train your Spanish skills today?"]
[]
[null,null,"How many Pomodoros did you complete?"]
[]
[null,null,"What skills did you train?\nWhat tools did you use?"]
[]
[null,null,"What did you do well today?\nWhat can you improve on tomorrow?"]

{"sheet":"Day 24","index":24,"n_rows":13,"n_cols":6,"rows_kept":13,"cut":false,"hidden":false,"merged":[[8,2,8,4],[8,5,8,8],[10,2,10,4],[10,5,10,8],[12,2,12,4],[12,5,12,8],[2,2,2,4],[2,5,2,8],[4,2,4,3],[4,4,4,6],[4,7,4,8],[6,2,6,4],[6,5,6,8]]}
[]
[]
[null,null,null,null,null,"LatinoFluency.com"]
[]
[null,null,"Day 24",null,{"$f":"\"Status: \"&IF(COUNTA(F7,F11,F13,F9)=4,\"COMPLETE\",\"INCOMPLETE\")","v":"Status: INCOMPLETE"}]
[]
[null,null,"Did you train your Spanish skills today?"]
[]
[null,null,"How many Pomodoros did you complete?"]
[]
[null,null,"What skills did you train?\nWhat tools did you use?"]
[]
[null,null,"What did you do well today?\nWhat can you improve on tomorrow?"]

{"sheet":"Day 25","index":25,"n_rows":13,"n_cols":6,"rows_kept":13,"cut":false,"hidden":false,"merged":[[8,2,8,4],[8,5,8,8],[10,2,10,4],[10,5,10,8],[12,2,12,4],[12,5,12,8],[2,2,2,4],[2,5,2,8],[4,2,4,3],[4,4,4,6],[4,7,4,8],[6,2,6,4],[6,5,6,8]]}
[]
[]
[null,null,null,null,null,"LatinoFluency.com"]
[]
[null,null,"Day 25",null,{"$f":"\"Status: \"&IF(COUNTA(F7,F11,F13,F9)=4,\"COMPLETE\",\"INCOMPLETE\")","v":"Status: INCOMPLETE"}]
[]
[null,null,"Did you train your Spanish skills today?"]
[]
[null,null,"How many Pomodoros did you complete?"]
[]
[null,null,"What skills did you train?\nWhat tools did you use?"]
[]
[null,null,"What did you do well today?\nWhat can you improve on tomorrow?"]

{"sheet":"Day 26","index":26,"n_rows":13,"n_cols":6,"rows_kept":13,"cut":false,"hidden":false,"merged":[[8,2,8,4],[8,5,8,8],[10,2,10,4],[10,5,10,8],[12,2,12,4],[12,5,12,8],[2,2,2,4],[2,5,2,8],[4,2,4,3],[4,4,4,6],[4,7,4,8],[6,2,6,4],[6,5,6,8]]}
[]
[]
[null,null,null,null,null,"LatinoFluency.com"]
[]
[null,null,"Day 26",null,{"$f":"\"Status: \"&IF(COUNTA(F7,F11,F13,F9)=4,\"COMPLETE\",\"INCOMPLETE\")","v":"Status: INCOMPLETE"}]
[]
[null,null,"Did you train your Spanish skills today?"]
[]
[null,null,"How many Pomodoros did you complete?"]
[]
[null,null,"What skills did you train?\nWhat tools did you use?"]
[]
[null,null,"What did you do well today?\nWhat can you improve on tomorrow?"]

{"sheet":"Day 27","index":27,"n_rows":13,"n_cols":6,"rows_kept":13,"cut":false,"hidden":false,"merged":[[8,2,8,4],[8,5,8,8],[10,2,10,4],[10,5,10,8],[12,2,12,4],[12,5,12,8],[2,2,2,4],[2,5,2,8],[4,2,4,3],[4,4,4,6],[4,7,4,8],[6,2,6,4],[6,5,6,8]]}
[]
[]
[null,null,null,null,null,"LatinoFluency.com"]
[]
[null,null,"Day 27",null,{"$f":"\"Status: \"&IF(COUNTA(F7,F11,F13,F9)=4,\"COMPLETE\",\"INCOMPLETE\")","v":"Status: INCOMPLETE"}]
[]
[null,null,"Did you train your Spanish skills today?"]
[]
[null,null,"How many Pomodoros did you complete?"]
[]
[null,null,"What skills did you train?\nWhat tools did you use?"]
[]
[null,null,"What did you do well today?\nWhat can you improve on tomorrow?"]

{"sheet":"Day 28","index":28,"n_rows":13,"n_cols":6,"rows_kept":13,"cut":false,"hidden":false,"merged":[[8,2,8,4],[8,5,8,8],[10,2,10,4],[10,5,10,8],[12,2,12,4],[12,5,12,8],[2,2,2,4],[2,5,2,8],[4,2,4,3],[4,4,4,6],[4,7,4,8],[6,2,6,4],[6,5,6,8]]}
[]
[]
[null,null,null,null,null,"LatinoFluency.com"]
[]
[null,null,"Day 28",null,{"$f":"\"Status: \"&IF(COUNTA(F7,F11,F13,F9)=4,\"COMPLETE\",\"INCOMPLETE\")","v":"Status: INCOMPLETE"}]
[]
[null,null,"Did you train your Spanish skills today?"]
[]
[null,null,"How many Pomodoros did you complete?"]
[]
[null,null,"What skills did you train?\nWhat tools did you use?"]
[]
[null,null,"What did you do well today?\nWhat can you improve on tomorrow?"]